bitfinex/quotes_ETHUSD_20250210
["timestamp","ask_amount","ask_price","bid_price","bid_amount"]
[1739152989419,3.87253,2582.3,2582.1,6.5]
[1739152989613,3.87306,2582.0,2581.7,0.7847]
[1739152989844,0.04633943,2581.9,2581.7,0.7847]
[1739152990040,0.04633943,2581.9,2581.4,0.7847]
[1739152990264,0.7682,2582.5,2581.4,0.7847]
[1739152990454,3.87386,2581.4,2581.3,6.5]
[1739152990658,3.87403,2581.3,2580.7,4.65959]
[1739152990858,3.87403,2581.3,2580.7,0.7847]
[1739152991022,0.04633943,2581.2,2580.7,4.65958]
[1739152991224,3.87402,2581.3,2580.8,3.0]
[1739152991420,3.92058943,2581.2,2580.8,0.55]
[1739152991622,3.87433,2581.1,2580.8,0.55]
[1739152991819,3.87419,2581.2,2580.8,0.55]
[1739152992050,0.04633943,2581.1,2580.7,4.65961]
[1739152992366,3.87402,2581.3,2580.7,1.250685]
[1739152992558,0.0444599,2581.0,2580.7,1.250685]
[1739152992760,3.87423,2581.2,2580.7,0.7847]
[1739152993062,3.87448,2581.0,2580.7,0.7847]
[1739152993231,0.0444599,2581.1,2580.6,3.87503]
[1739152993434,0.0444599,2581.1,2580.8,0.55]
[1739152993622,3.87363,2581.6,2581.0,0.55]
[1739152993822,0.0444599,2581.5,2581.0,1.3347]
[1739152994069,3.87387,2581.4,2581.0,1.3347]
[1739152994267,3.87424,2581.2,2580.7,3.49787165]
[1739152994563,3.87361,2581.6,2581.0,0.55]
[1739152994900,3.87404,2581.3,2580.7,42.37268165]
[1739152995159,0.0444599,2581.5,2580.9,4.42448]
[1739152995362,3.87372,2581.5,2580.9,4.42448]
[1739152995762,0.0444599,2581.4,2580.9,4.42448]
[1739152995962,3.87361,2581.6,2580.9,4.42448]
[1739152996165,3.87361,2581.6,2580.9,8.22343909]
[1739152996364,3.9181999,2581.5,2580.9,8.22343909]
[1739152996568,0.0444599,2581.5,2580.9,8.22343909]
[1739152996766,3.9181899,2581.5,2580.9,8.22343909]
[1739152997435,3.87387,2581.4,2580.9,4.34895909]
[1739152997626,3.87426,2581.2,2580.7,38.49787165]
[1739152997828,3.87426,2581.2,2580.8,0.55]
[1739152998130,0.04367646,2581.1,2580.8,0.55]
[1739152998637,0.04367646,2581.0,2580.8,4.42474]
[1739152998840,3.87394,2581.4,2580.8,4.42474]
[1739152999035,0.04367646,2581.3,2580.8,4.42474]
[1739152999278,0.04367646,2581.3,2580.6,4.65975]
[1739152999279,3.87442,2581.1,2580.6,0.7847]
[1739152999642,0.0435032,2581.0,2580.7,0.55]
[1739153000371,3.87451,2581.0,2580.6,0.7847]
[1739153000559,0.0435032,2580.9,2580.6,0.7847]
[1739153000971,3.87486,2580.8,2580.3,9.86357165]
[1739153001169,3.87527,2580.5,2580.3,5.581]
[1739153001499,4.6426,2581.1,2580.4,3.87526]
[1739153001905,4.6426,2581.1,2580.5,0.7847]
[1739153002202,3.87432,2581.1,2580.6,4.42504]
[1739153002439,0.7682,2581.4,2580.6,0.55]
[1739153002551,0.7682,2581.4,2580.3,5.581]
[1739153002754,3.87526,2580.5,2580.3,5.581]
[1739153003375,3.87526,2580.5,2580.0,0.1]
[1739153003563,3.8755,2580.4,2580.0,0.1]
[1739153003890,3.87569,2580.2,2580.0,0.1]
[1739153004386,7.75087,2580.4,2580.0,0.1]
[1739153004590,3.87516,2580.6,2580.0,0.1]
[1739153004749,3.87581,2580.1,2580.0,0.1]
[1739153004951,3.87567,2580.2,2580.0,0.1]
[1739153005363,7.75153,2580.2,2580.0,0.1]
[1739153005687,3.87581,2580.1,2580.0,0.1]
[1739153008360,3.87511,2580.6,2580.0,0.1]
[1739153008771,3.87541,2580.4,2580.0,0.1]
[1739153009195,4.650562,2580.4,2580.0,0.1]
[1739153009504,3.87581,2580.1,2580.0,0.1]
[1739153011507,3.91833922,2580.1,2580.0,0.1]
[1739153013009,6.91833922,2580.1,2580.0,0.1]
[1739153013211,7.68653922,2580.1,2580.0,0.1]
[1739153013772,7.68653922,2580.1,2578.9,0.7847]
[1739153013773,3.81072922,2580.1,2578.9,0.7847]
[1739153013986,3.87726,2579.2,2578.9,0.7847]
[1739153014189,3.87713,2579.3,2578.6,0.7847]
[1739153014190,3.87742,2579.1,2578.6,0.7847]
[1739153014387,3.8772,2579.2,2578.6,0.7847]
[1739153014602,0.04252922,2579.0,2578.7,0.55]
[1739153014918,0.04252922,2578.9,2578.6,0.7847]
[1739153015218,3.87786,2578.8,2578.3,0.7847]
[1739153015402,3.87836,2578.5,2578.3,0.7847]
[1739153015574,3.87809,2578.6,2578.3,0.7847]
[1739153015779,0.04252922,2578.4,2578.0,4.66366]
[1739153015979,3.87793,2578.7,2578.0,0.7847]
[1739153016217,3.87793,2578.7,2578.1,3.87877]
[1739153016404,0.04252922,2578.6,2578.1,3.87877]
[1739153016912,0.04252922,2578.6,2578.1,1.50403517]
[1739153017077,3.87778,2578.8,2578.2,3.87865]
[1739153017535,0.04135597,2578.7,2578.2,3.87865]
[1739153017682,0.04135597,2578.7,2578.1,3.0]
[1739153017683,3.87817,2578.6,2578.1,3.0]
[1739153017896,0.04135597,2578.7,2578.1,3.0]
[1739153018127,3.87782,2578.8,2578.3,0.55]
[1739153018330,0.04135597,2578.6,2578.3,0.55]
[1739153018621,3.87782,2578.8,2578.3,0.55]
[1739153018790,0.04135597,2578.5,2578.0,0.7847]
[1739153019134,3.87833,2578.5,2577.9,4.26797165]
[1739153019425,0.04135597,2578.4,2578.1,0.55]
[1739153019637,0.04135597,2578.4,2577.6,3.87949]
[1739153019802,0.7598,2578.5,2577.5,6.5]
[1739153020013,3.87891,2578.1,2577.5,10.37971]
[1739153020183,3.87867,2578.2,2577.6,6.87948]
[1739153020384,0.04135597,2578.0,2577.6,3.0]
[1739153020614,3.87885,2578.1,2577.6,3.0]
[1739153020935,8.51645,2578.5,2577.8,4.42927]
[1739153021083,0.04135597,2578.0,2577.9,0.55]
[1739153021280,3.87843,2578.4,2577.9,0.55]
[1739153021526,0.04135597,2578.0,2577.9,1.3201]
[1739153021840,3.87798,2578.7,2578.0,3.87888]
[1739153022003,0.463778,2578.6,2578.0,3.87888]
[1739153022331,3.87831,2578.5,2577.9,5.19919]
[1739153022484,0.7598,2578.8,2577.8,3.0]
[1739153022485,3.8784,2578.4,2577.8,3.0]
[1739153022683,0.7598,2578.8,2577.8,3.0]
[1739153022684,3.87894,2578.1,2577.8,3.0]
[1739153022984,0.7598,2578.3,2577.4,3.87984]
[1739153023214,3.87868,2578.2,2577.6,0.55]
[1739153023418,3.87868,2578.2,2577.6,4.42951]
[1739153023783,7.75749,2578.2,2577.6,4.42951]
[1739153023979,3.87868,2578.2,2577.6,4.42951]
[1739153024425,4.63792,2578.6,2578.0,3.87896]
[1739153024641,3.87763,2578.9,2578.1,0.58878796]
[1739153024936,3.87786,2578.8,2578.4,0.7701]
[1739153025497,3.87733,2579.1,2578.6,3.87803]
[1739153025725,3.87693,2579.4,2578.7,0.55]
[1739153025903,3.87693,2579.4,2578.9,0.7701]
[1739153026293,0.03666102,2579.3,2579.0,4.42746]
[1739153026488,9.19612,2579.9,2579.3,0.55]
[1739153026734,3.87612,2579.9,2579.3,0.55]
[1739153026942,3.0,2579.8,2578.9,0.7701]
[1739153027239,3.87758,2579.0,2578.6,0.7701]
[1739153027386,3.87778,2578.8,2578.3,0.8055]
[1739153027835,3.87794,2578.7,2578.3,0.8055]
[1739153028332,3.87736,2579.1,2578.5,3.87821]
[1739153028493,3.87736,2579.1,2578.4,0.55]
[1739153028684,3.87764,2578.9,2578.4,0.55]
[1739153028884,4.265404,2578.9,2578.3,0.8055]
[1739153029134,3.87824,2578.5,2578.0,0.8055]
[1739153029493,3.87795,2578.7,2578.0,4.68447]
[1739153029695,3.87787,2578.8,2578.1,0.55]
[1739153029996,3.87822,2578.5,2578.0,0.8055]
[1739153030846,3.87795,2578.7,2578.0,0.8055]
[1739153030992,0.7882,2579.2,2578.1,0.55]
[1739153031339,3.87702,2579.3,2578.6,3.87794]
[1739153032359,6.1082,2579.8,2579.2,3.8771]
[1739153032717,3.87615,2579.9,2579.3,0.8156]
[1739153032877,3.87642,2579.7,2579.3,0.8156]
[1739153033525,8.54,2580.1,2579.3,0.8156]
[1739153033725,3.87588,2580.1,2579.5,3.49787165]
[1739153034028,7.75119,2580.3,2579.5,7.37457165]
[1739153034278,3.87583,2580.1,2579.6,1.12514317]
[1739153034576,3.87583,2580.1,2579.5,3.49787165]
[1739153035133,3.7882,2580.5,2579.5,3.49787165]
[1739153035360,7.75239,2579.9,2579.5,3.49787165]
[1739153035527,3.87645,2579.7,2579.3,0.8156]
[1739153035946,3.87658,2579.6,2579.3,0.8156]
[1739153036474,3.87658,2579.6,2579.1,3.49787165]
[1739153036475,3.87687,2579.4,2579.1,3.49787165]
[1739153036979,0.7882,2579.9,2578.4,6.5]
[1739153036980,3.87777,2578.8,2578.4,6.5]
[1739153037272,3.87777,2578.8,2578.4,7.3156]
[1739153037585,3.8781,2578.6,2578.4,0.8156]
[1739153037878,3.8781,2578.6,2578.0,3.87885]
[1739153037879,3.87843,2578.4,2578.0,0.8156]
[1739153038172,3.87868,2578.2,2578.0,0.8156]
[1739153038591,3.8791,2578.0,2577.6,0.8156]
[1739153039249,3.8776,2579.0,2577.9,3.49787165]
[1739153039444,3.87815,2578.6,2578.0,3.87894]
[1739153039646,3.87815,2578.6,2577.9,7.37692165]
[1739153039961,7.75636,2578.6,2577.9,7.37692165]
[1739153040192,3.87822,2578.5,2577.9,7.37692165]
[1739153040326,3.87815,2578.6,2577.9,8.55755281]
[1739153040757,3.87886,2578.1,2577.6,1.63493017]
[1739153041145,3.87886,2578.1,2577.6,0.8156]
[1739153041359,0.03796828,2578.0,2577.6,0.8156]
[1739153041949,3.91694828,2578.0,2577.6,0.8156]
[1739153042141,3.87957,2577.6,2577.2,0.8156]
[1739153042490,3.88,2577.4,2577.1,0.005]
[1739153042631,3.88018,2577.2,2577.1,0.005]
[1739153043037,3.9176599,2577.2,2577.1,0.005]
[1739153043969,0.0374799,2577.2,2577.1,0.005]
[1739153044385,3.88005,2577.3,2577.1,0.005]
[1739153044588,3.91763506,2577.2,2577.1,0.005]
[1739153044893,0.7882,2577.0,2576.1,0.8156]
[1739153045089,0.7882,2577.0,2575.8,3.49787165]
[1739153045090,3.7882,2577.0,2575.8,3.49787165]
[1739153045273,3.88078,2576.8,2575.8,3.49787165]
[1739153045482,4.66871,2577.0,2576.2,3.64278585]
[1739153045797,3.87968,2577.6,2577.0,4.69605]
[1739153046144,3.87968,2577.6,2577.0,0.8156]
[1739153046340,0.7882,2578.0,2577.0,4.31347165]
[1739153046341,3.87928,2577.8,2577.0,4.31347165]
[1739153046584,3.87863,2578.3,2577.3,3.87989]
[1739153046866,3.0,2578.7,2577.2,3.88012]
[1739153047173,3.87929,2577.8,2577.2,0.87435916]
[1739153047786,3.87975,2577.5,2577.2,0.87435916]
[1739153048085,3.87958,2577.6,2577.0,4.31347165]
[1739153048086,3.87998,2577.4,2577.0,4.31347165]
[1739153048381,3.87958,2577.6,2577.0,4.31347165]
[1739153048849,0.7882,2578.2,2577.1,0.55]
[1739153049039,0.361,2579.3,2577.1,0.55]
[1739153049040,1.00403846,2578.5,2577.5,0.55]
[1739153049242,0.21583846,2578.5,2577.9,4.65121]
[1739153049542,0.21583846,2578.5,2578.1,3.87882]
[1739153049775,3.87765,2578.9,2578.1,3.87882]
[1739153050080,0.21583846,2579.1,2578.2,3.49787165]
[1739153050081,4.09318846,2579.1,2578.2,3.49787165]
[1739153050271,3.87777,2578.8,2578.2,4.23554082]
[1739153050465,3.87803,2578.7,2578.2,4.23554082]
[1739153051078,3.87803,2578.7,2577.9,5.20128]
[1739153051079,3.87803,2578.7,2577.9,0.7722]
[1739153051254,3.87803,2578.7,2578.1,3.87881]
[1739153051849,3.87771,2578.9,2578.2,3.87865]
[1739153052051,3.87743,2579.1,2578.4,3.87824]
[1739153052252,3.87704,2579.3,2578.6,8.14812165]
[1739153052449,1.00403846,2579.7,2578.6,4.27007165]
[1739153052653,3.87794,2578.7,2578.2,4.82007165]
[1739153052863,3.87778,2578.8,2578.2,4.82007165]
[1739153053063,3.87778,2578.8,2578.2,4.27007165]
[1739153053563,3.87721,2579.2,2578.3,0.55]
[1739153053868,3.87732,2579.1,2578.5,3.87811]
[1739153054264,0.7882,2579.7,2578.4,0.48200717]
[1739153054464,3.87808,2578.6,2578.2,4.27007165]
[1739153054761,3.87808,2578.6,2577.9,4.24002]
[1739153054762,0.7882,2579.0,2577.5,0.7722]
[1739153054971,3.87902,2578.0,2577.5,0.7722]
[1739153055285,3.87777,2578.8,2577.5,2.23718417]
[1739153055492,3.87954,2577.7,2577.5,0.7722]
[1739153055688,0.7882,2578.4,2577.0,3.49787165]
[1739153055689,3.87987,2577.4,2577.1,0.7722]
[1739153055985,0.03670229,2577.3,2577.1,0.7722]
[1739153056188,3.87987,2577.4,2577.1,0.7722]
[1739153056390,3.88018,2577.2,2577.1,0.7722]
[1739153056587,0.03669401,2577.2,2577.0,3.49787165]
[1739153056790,3.87965,2577.6,2577.0,3.49787165]
[1739153056791,3.87944,2577.7,2577.1,3.88033]
[1739153057088,3.91640401,2577.6,2577.0,3.49787165]
[1739153057256,3.88011,2577.3,2576.8,1.3222]
[1739153057458,3.87997,2577.4,2576.8,1.3222]
[1739153057651,0.03648699,2577.2,2576.8,4.65296]
[1739153057851,3.8796,2577.6,2577.0,3.49787165]
[1739153058072,0.03644558,2577.1,2577.0,3.49787165]
[1739153058270,3.87998,2577.4,2577.0,3.49787165]
[1739153058456,0.03644558,2577.1,2576.8,0.7722]
[1739153058665,3.8805,2577.0,2576.8,0.7722]
[1739153058896,3.91694558,2577.0,2576.5,5.592]
[1739153059079,3.88065,2576.9,2576.5,5.592]
[1739153059400,3.8802,2577.2,2576.5,5.592]
[1739153059594,3.87992,2577.4,2576.7,3.88091]
[1739153059887,3.87992,2577.4,2576.6,3.49787165]
[1739153060187,3.88042,2577.1,2576.6,3.49787165]
[1739153060388,0.7882,2577.6,2576.6,3.49787165]
[1739153060690,0.7882,2577.6,2576.5,5.592]
[1739153060691,3.88099,2576.7,2576.5,5.592]
[1739153060875,3.88065,2576.9,2576.5,5.592]
[1739153061293,3.88039,2577.1,2576.6,3.49787165]
[1739153061479,0.7882,2578.0,2576.8,3.88078]
[1739153061655,3.87946,2577.7,2577.1,0.7722]
[1739153061994,3.87947,2577.7,2577.1,0.7722]
[1739153062201,3.87898,2578.0,2577.2,3.88017]
[1739153062496,3.87883,2578.1,2577.4,7.37762165]
[1739153062802,3.87897,2578.0,2577.4,3.49787165]
[1739153063090,3.87883,2578.1,2577.5,3.8797]
[1739153063293,3.87841,2578.4,2577.7,0.7722]
[1739153063620,3.87841,2578.4,2577.8,11.72147565]
[1739153063906,3.87795,2578.7,2578.0,3.87884]
[1739153064087,3.87783,2578.8,2578.1,4.4288]
[1739153064269,3.8775,2579.0,2578.2,4.27007165]
[1739153064470,3.8775,2579.0,2578.3,3.8785]
[1739153064886,3.87832,2578.5,2578.2,0.7722]
[1739153065100,3.87852,2578.3,2577.9,0.7722]
[1739153065405,3.87867,2578.2,2577.9,0.7722]
[1739153065610,3.87909,2578.0,2577.5,0.7722]
[1739153066068,3.87913,2577.9,2577.5,3.7722]
[1739153066265,3.87882,2578.1,2577.5,3.7722]
[1739153066597,3.87832,2578.5,2577.9,3.87911]
[1739153066768,9.19813,2578.6,2578.0,4.65109]
[1739153067093,3.87871,2578.2,2577.8,3.49787165]
[1739153067293,3.87871,2578.2,2577.6,7.65177]
[1739153067594,3.87824,2578.5,2577.8,3.87917]
[1739153067798,3.87779,2578.8,2578.1,3.0]
[1739153068009,3.87779,2578.8,2578.2,0.7722]
[1739153068161,3.87749,2579.0,2578.4,3.87835]
[1739153068369,4.09280846,2579.4,2578.7,3.8778]
[1739153069197,3.87697,2579.4,2578.7,3.8778]
[1739153069399,3.87697,2579.4,2578.8,0.7722]
[1739153069608,3.87705,2579.3,2578.8,0.7722]
[1739153069764,4.264637,2579.4,2578.8,0.7722]
[1739153069968,3.87694,2579.4,2578.8,4.64994]
[1739153070368,3.87694,2579.4,2578.8,0.7722]
[1739153070801,3.87757,2579.0,2578.5,0.7722]
[1739153071018,7.75517,2579.0,2578.5,0.7722]
[1739153071304,3.87757,2579.0,2578.5,0.7722]
[1739153072096,0.7882,2579.8,2578.5,1.237269]
[1739153072293,3.87705,2579.3,2578.7,3.87789]
[1739153072503,3.87705,2579.3,2578.6,3.87805]
[1739153072791,3.87705,2579.3,2578.5,4.65031]
[1739153073110,3.87741,2579.1,2578.5,4.65031]
[1739153073320,3.87705,2579.3,2578.5,4.65031]
[1739153073613,3.87705,2579.3,2578.7,3.87792]
[1739153074189,7.75422,2579.3,2578.7,3.87792]
[1739153074400,3.87741,2579.1,2578.5,0.7722]
[1739153074810,7.75422,2579.3,2578.6,3.87804]
[1739153074973,3.87708,2579.3,2578.6,3.87804]
[1739153075169,0.7882,2579.8,2578.5,4.65029]
[1739153075406,3.8773,2579.2,2578.5,4.65029]
[1739153075574,3.87748,2579.0,2578.5,0.7722]
[1739153075914,3.8773,2579.2,2578.6,3.87805]
[1739153076085,0.7882,2579.8,2578.6,3.49787165]
[1739153076269,3.87652,2579.7,2579.2,3.87715]
[1739153076473,3.87661,2579.6,2579.0,3.87735]
[1739153076769,5.32,2579.9,2578.7,0.7722]
[1739153076770,3.87742,2579.1,2578.7,0.7722]
[1739153076969,0.03661905,2579.0,2578.7,0.7722]
[1739153077173,3.8768,2579.5,2578.9,3.87762]
[1739153077407,3.8768,2579.5,2578.8,3.87773]
[1739153077595,3.87716,2579.3,2578.7,3.7722]
[1739153077781,3.87726,2579.2,2578.7,3.7722]
[1739153077983,3.91573934,2579.1,2578.7,3.7722]
[1739153078185,0.03829934,2579.1,2578.7,3.7722]
[1739153078579,3.87762,2578.9,2578.3,0.8022]
[1739153078974,3.87823,2578.5,2578.3,0.8022]
[1739153079289,0.03804292,2578.4,2578.0,6.5]
[1739153079687,0.03804292,2578.4,2577.9,4.68129]
[1739153079920,3.91647292,2578.4,2577.9,0.8022]
[1739153080517,0.03804292,2578.4,2577.9,4.6813]
[1739153080723,3.91643292,2578.4,2577.9,0.8022]
[1739153081130,3.87815,2578.6,2578.0,8.30775]
[1739153081431,3.87755,2579.0,2578.4,3.87836]
[1739153081579,3.87755,2579.0,2578.5,0.8022]
[1739153081774,0.39155593,2579.1,2578.5,0.8022]
[1739153082127,3.87875,2578.2,2578.0,6.5]
[1739153082282,3.87882,2578.1,2578.0,6.5]
[1739153082716,3.87913,2577.9,2577.6,0.8022]
[1739153083110,4.266732,2578.1,2577.5,6.5]
[1739153083111,0.387882,2578.1,2577.5,6.5]
[1739153083427,3.87957,2577.6,2577.5,6.5]
[1739153083630,3.87999,2577.4,2577.0,0.8022]
[1739153083844,3.88012,2577.3,2577.0,0.8022]
[1739153084134,3.87987,2577.4,2576.5,6.5]
[1739153084290,3.88067,2576.9,2576.5,6.5]
[1739153084690,3.88067,2576.9,2576.4,0.8022]
[1739153085184,7.7608,2577.1,2576.4,0.8022]
[1739153085526,3.88127,2576.5,2576.2,0.1449142]
[1739153085885,3.88108,2576.6,2576.2,0.1449142]
[1739153086085,3.881,2576.7,2576.2,0.1449142]
[1739153086320,3.88122,2576.6,2576.2,0.1449142]
[1739153086631,3.8808,2576.8,2576.2,0.1449142]
[1739153087127,3.88049,2577.0,2576.2,7.52445585]
[1739153087328,3.88063,2576.9,2576.2,7.52445585]
[1739153087831,0.7696,2577.5,2576.3,0.55]
[1739153087978,0.7696,2577.5,2576.2,3.64278585]
[1739153087979,3.88116,2576.6,2576.2,0.1449142]
[1739153088886,3.88139,2576.4,2576.2,0.1449142]
[1739153089128,3.88153,2576.3,2576.2,0.1449142]
[1739153089519,3.88139,2576.4,2576.2,0.1449142]
[1739153089966,0.7696,2577.1,2576.2,0.1449142]
[1739153090272,3.88075,2576.9,2576.4,0.8022]
[1739153090779,3.88101,2576.7,2576.4,0.8022]
[1739153090919,3.88108,2576.6,2576.2,0.1449142]
[1739153091120,3.88145,2576.4,2576.2,0.1449142]
[1739153091630,3.88153,2576.3,2576.2,0.1449142]
[1739153091937,4.66973,2576.3,2576.2,0.1449142]
[1739153092520,7.76298,2576.4,2576.2,0.1449142]
[1739153092739,3.88114,2576.6,2576.2,0.1449142]
[1739153093311,0.7882,2576.7,2576.2,0.1449142]
[1739153093312,3.88093,2576.7,2576.2,0.1449142]
[1739153093667,3.88111,2576.6,2576.2,0.1449142]
[1739153093914,7.76174,2576.8,2576.2,0.1449142]
[1739153094084,3.88102,2576.7,2576.2,0.1449142]
[1739153094287,3.88119,2576.6,2576.2,0.1449142]
[1739153094486,3.88085,2576.8,2576.3,0.8034]
[1739153094903,3.88094,2576.7,2576.3,0.8034]
[1739153095274,3.88085,2576.8,2576.3,0.8034]
[1739153095474,3.8811,2576.6,2576.3,0.8034]
[1739153095905,3.88057,2577.0,2576.3,4.68491]
[1739153096107,3.88057,2577.0,2576.3,1.28638242]
[1739153096482,3.88014,2577.3,2576.6,3.88094]
[1739153096681,3.88033,2577.1,2576.6,3.88094]
[1739153096887,3.88033,2577.1,2576.4,3.88136]
[1739153097403,6.1082,2577.4,2576.3,0.8034]
[1739153097608,3.88121,2576.6,2576.2,0.1449142]
[1739153097809,3.88153,2576.3,2576.2,0.1449142]
[1739153098106,4.66973,2576.3,2576.2,4.2e-06]
[1739153098522,7.66973,2576.3,2576.2,4.2e-06]
[1739153100507,4.66973,2576.3,2576.2,4.2e-06]
[1739153100707,5.38673905,2576.3,2576.2,4.2e-06]
[1739153100912,8.38673905,2576.3,2576.2,4.2e-06]
[1739153102648,8.93673905,2576.3,2576.2,4.2e-06]
[1739153103567,3.88359,2575.0,2574.4,0.8034]
[1739153103714,0.71700905,2576.3,2574.7,0.8034]
[1739153103905,3.88292,2575.4,2574.8,0.43012717]
[1739153104229,3.88336,2575.1,2574.8,0.43012717]
[1739153104430,3.8836,2575.0,2574.7,0.8034]
[1739153104826,3.88366,2574.9,2574.7,0.8034]
[1739153105220,0.7882,2575.6,2574.7,0.8034]
[1739153105425,4.66030844,2575.9,2574.1,0.8034]
[1739153105426,3.8847,2574.2,2574.1,0.8034]
[1739153105619,3.88515,2573.9,2573.8,6.5]
[1739153106678,3.88515,2573.9,2573.4,0.8165]
[1739153107032,3.88456,2574.3,2573.5,3.88575]
[1739153107258,3.8843,2574.5,2573.9,3.88513]
[1739153107563,3.88402,2574.7,2574.2,0.8165]
[1739153107770,0.21641669,2574.8,2574.2,0.8165]
[1739153108019,3.88419,2574.6,2574.2,0.8165]
[1739153108172,4.10021669,2574.8,2574.2,0.8165]
[1739153108382,0.21641669,2574.8,2574.2,1.286634]
[1739153108680,0.21641669,2575.5,2575.1,3.88331]
[1739153108989,0.21641669,2575.5,2574.7,0.8165]
[1739153108990,3.88304,2575.3,2574.8,0.55]
[1739153109322,3.88379,2574.8,2574.7,0.8165]
[1739153109584,3.8844,2574.4,2574.0,0.8165]
[1739153109747,3.88424,2574.6,2574.0,0.8165]
[1739153109926,3.88422,2574.6,2574.0,0.8165]
[1739153110131,3.88429,2574.5,2574.0,0.8165]
[1739153110348,3.88451,2574.4,2574.0,0.8165]
[1739153110633,3.88451,2574.4,2573.6,7.47941778]
[1739153110634,3.885,2574.0,2573.6,0.9614142]
[1739153110866,3.88471,2574.2,2573.6,4.8469942]
[1739153111072,3.88471,2574.2,2573.6,0.9614142]
[1739153111370,3.88441,2574.4,2574.1,0.8165]
[1739153111574,4.272851,2574.4,2573.8,4.31437165]
[1739153111788,3.8847,2574.2,2573.8,4.31437165]
[1739153112140,3.8847,2574.2,2573.8,0.8165]
[1739153112345,3.88497,2574.1,2573.6,0.1449142]
[1739153112543,3.88506,2574.0,2573.6,0.1449142]
[1739153112795,4.41429238,2574.1,2573.6,0.1449142]
[1739153113079,0.52944238,2574.1,2573.6,0.1449142]
[1739153113285,3.88545,2573.7,2573.6,0.1449142]
[1739153113447,0.20620929,2573.9,2573.6,0.1449142]
[1739153113650,4.09136929,2573.9,2573.6,0.1449142]
[1739153114372,3.88545,2573.7,2573.6,0.1449142]
[1739153115795,4.55119532,2573.7,2573.6,0.0949142]
[1739153116569,0.66574532,2573.7,2573.6,0.0949142]
[1739153116878,0.44932863,2573.7,2573.6,0.0949142]
[1739153117478,4.33477863,2573.7,2573.6,0.0949142]
[1739153117783,0.44932863,2573.7,2573.6,0.0949142]
[1739153118290,4.33477863,2573.7,2573.6,0.0949142]
[1739153118584,5.15678749,2573.7,2573.6,0.0949142]
[1739153121247,5.37133481,2573.7,2573.6,4.2e-06]
[1739153121448,8.37133481,2573.7,2573.6,4.2e-06]
[1739153121683,4.48588481,2573.7,2572.7,0.7094042]
[1739153121886,3.88599,2573.4,2572.7,0.7094042]
[1739153122063,3.88646,2573.1,2572.7,0.7094042]
[1739153122479,0.66387595,2573.3,2572.7,0.7094042]
[1739153122679,0.66387595,2573.3,2572.7,4.5962442]
[1739153122849,0.66387595,2573.3,2572.8,0.55]
[1739153123056,4.54994595,2573.3,2572.7,4.5962442]
[1739153123353,3.88634,2573.2,2572.7,0.7094042]
[1739153123784,0.20620929,2573.2,2572.7,0.7094042]
[1739153123987,4.09252929,2573.2,2572.7,0.7094042]
[1739153124301,3.88681,2572.8,2572.7,0.7094042]
[1739153124497,3.88677,2572.9,2572.3,0.55]
[1739153124651,1.80226922,2573.2,2572.4,0.7594]
[1739153124652,3.88638,2573.1,2572.4,0.7594]
[1739153124998,0.44941041,2572.8,2572.7,3.88684]
[1739153125155,0.44941041,2572.8,2572.7,3.83684]
[1739153125355,0.44941041,2572.8,2572.7,4.38684]
[1739153125568,0.44941041,2572.8,2572.7,5.56403017]
[1739153126065,0.44941041,2572.8,2572.7,9.32343017]
[1739153126276,0.44941041,2572.8,2572.7,5.48659017]
[1739153126576,0.7982,2573.8,2572.7,6.37355017]
[1739153126577,4.10069732,2573.3,2572.7,6.37355017]
[1739153126810,3.88636,2573.1,2572.7,0.7594]
[1739153127382,4.10068732,2573.3,2572.7,4.64628]
[1739153127581,0.21454732,2573.3,2573.0,3.16901143]
[1739153127812,0.21454732,2573.1,2573.0,3.16901143]
[1739153128717,0.21454732,2573.1,2572.7,3.92841143]
[1739153128923,0.21454732,2573.1,2573.0,3.16901143]
[1739153129235,0.21454732,2573.1,2573.0,7.05552143]
[1739153129383,0.21454732,2573.1,2573.0,8.41938398]
[1739153129583,0.44146345,2573.1,2573.0,46.38052143]
[1739153130033,0.44146345,2573.1,2573.0,11.38052143]
[1739153130182,0.44146345,2573.1,2573.0,13.55723857]
[1739153130719,0.38664243,2574.7,2573.0,13.55723857]
[1739153130720,0.21534502,2573.8,2573.7,7.66045]
[1739153130924,0.21534502,2573.8,2573.7,12.53406643]
[1739153131487,0.21534502,2573.8,2573.7,16.42206643]
[1739153131703,0.21534502,2573.8,2573.7,22.92206643]
[1739153131902,0.38664243,2575.2,2574.6,0.775]
[1739153132100,0.38664243,2575.2,2575.0,3.88349]
[1739153132343,0.09642576,2575.1,2575.0,0.775]
[1739153132618,3.88314,2575.3,2574.7,3.88393]
[1739153132832,0.09455164,2575.2,2574.8,7.05278143]
[1739153132982,3.88248,2575.7,2574.8,7.05278143]
[1739153133185,0.09455164,2575.6,2575.1,0.775]
[1739153133388,3.88319,2575.2,2574.8,3.94401143]
[1739153133716,3.88319,2575.2,2574.4,4.43439]
[1739153133717,3.88376,2574.9,2574.4,0.775]
[1739153133880,0.09491677,2575.1,2574.4,0.775]
[1739153133881,3.88393,2574.8,2574.4,0.775]
[1739153134086,3.88393,2574.8,2574.0,10.74498]
[1739153134292,3.97887677,2574.7,2574.1,0.775]
[1739153134633,3.8847,2574.2,2574.1,0.775]
[1739153134798,3.88493,2574.1,2573.6,0.775]
[1739153135000,3.88543,2573.8,2573.5,6.5]
[1739153135249,0.09460144,2573.7,2573.5,6.5]
[1739153135397,3.88516,2573.9,2573.5,6.5]
[1739153135602,3.88561,2573.6,2573.2,0.775]
[1739153135822,3.88539,2573.8,2573.2,1.88946575]
[1739153136036,0.09384592,2573.7,2573.2,5.77565575]